fUSD/lending_fUSD_20240814
["ID","MTS","AMOUNT","RATE_DAILY","PERIOD"]
[334835763,1723606269816,-500.0,0.0001452,2]
[334835764,1723606269825,-500.0,0.0001452,2]
[334835765,1723606269834,-500.0,0.0001452,2]
[334835766,1723606269843,-544.13,0.0001452,2]
[334835767,1723606269853,-500.0,0.0001452,2]
[334835768,1723606269862,-500.0,0.0001452,2]
[334835769,1723606269872,-500.0,0.0001452,2]
[334835770,1723606269880,-500.0,0.0001452,2]
[334835771,1723606269889,-185.40994354,0.0001452,2]
[334835772,1723606269899,-500.0,0.0001452,2]
[334835773,1723606269908,-500.0,0.0001452,2]
[334835774,1723606269918,-500.0,0.0001452,2]
[334835775,1723606269927,-628.21,0.0001452,2]
[334835776,1723606269937,-500.0,0.0001452,2]
[334835777,1723606269946,-418.08,0.0001452,2]
[334835778,1723606269955,-1008.16,0.0001452,2]
[334835779,1723606269964,-500.0,0.0001452,2]
[334835780,1723606269973,-796.04,0.0001452,2]
[334835781,1723606269982,-500.0,0.0001452,2]
[334835782,1723606269991,-500.0,0.0001452,2]
[334835783,1723606270001,-500.0,0.0001452,2]
[334835784,1723606270010,-500.0,0.0001452,2]
[334835785,1723606270019,-1082.31,0.0001452,2]
[334835786,1723606270028,-500.0,0.0001452,2]
[334835787,1723606270038,-500.0,0.0001452,2]
[334835788,1723606270047,-500.0,0.0001452,2]
[334835789,1723606270056,-198.48226729,0.0001452,2]
[334835790,1723606270065,-1596.04,0.0001452,2]
[334835791,1723606270075,-724.72,0.0001452,2]
[334835792,1723606270085,-549.47640479,0.0001452,2]
[334835793,1723606270094,-647.99,0.0001452,2]
[334835794,1723606270104,-500.0,0.0001452,2]
[334835795,1723606270115,-977.0,0.0001452,2]
[334835796,1723606270124,-500.0,0.0001452,2]
[334835797,1723606270134,-840.35,0.0001452,2]
[334835798,1723606270143,-500.0,0.0001452,2]
[334835799,1723606270153,-500.0,0.0001452,2]
[334835800,1723606270162,-500.0,0.0001452,2]
[334835801,1723606270172,-809.96,0.0001452,2]
[334835802,1723606270181,-500.0,0.0001452,2]
[334835803,1723606270191,-2029.07,0.0001452,2]
[334835804,1723606270200,-500.0,0.0001452,2]
[334835805,1723606270210,-500.0,0.0001452,2]
[334835806,1723606270220,-500.0,0.0001452,2]
[334835807,1723606270229,-500.0,0.0001452,2]
[334835808,1723606270239,-264.54913618,0.0001452,2]
[334835809,1723606270248,-500.0,0.0001452,2]
[334835810,1723606270258,-500.0,0.0001452,2]
[334835811,1723606270267,-529.41,0.0001452,2]
[334835812,1723606270276,-500.0,0.0001452,2]
[334835813,1723606270286,-649.16,0.0001452,2]
[334835814,1723606270295,-615.91,0.0001452,2]
[334835815,1723606270305,-500.0,0.0001452,2]
[334835816,1723606270315,-766.96,0.0001452,2]
[334835817,1723606270324,-500.0,0.0001452,2]
[334835818,1723606270334,-809.11,0.0001452,2]
[334835819,1723606270343,-577.76,0.0001452,2]
[334835820,1723606270354,-1127.52,0.0001452,2]
[334835821,1723606270363,-500.0,0.0001452,2]
[334835822,1723606270373,-1199.36,0.0001452,2]
[334835823,1723606270383,-500.0,0.0001452,2]
[334835824,1723606270393,-500.0,0.0001452,2]
[334835825,1723606270402,-2817.32,0.0001452,2]
[334835826,1723606270411,-500.0,0.0001452,2]
[334835827,1723606270421,-500.0,0.0001452,2]
[334835828,1723606270430,-516.75,0.0001452,2]
[334835829,1723606270439,-685.63,0.0001452,2]
[334835830,1723606270449,-626.55,0.0001452,2]
[334835831,1723606270458,-500.0,0.0001452,2]
[334835832,1723606270468,-170.65691749,0.0001452,2]
[334835833,1723606270478,-744.96,0.0001452,2]
[334835834,1723606270487,-965.94,0.0001452,2]
[334835835,1723606270497,-1535.24,0.0001452,2]
[334835836,1723606270507,-500.0,0.0001452,2]
[334835837,1723606270516,-500.0,0.0001452,2]
[334835838,1723606270526,-1269.45,0.0001452,2]
[334835839,1723606270536,-500.0,0.0001452,2]
[334835840,1723606270545,-500.0,0.0001452,2]
[334835841,1723606270554,-500.0,0.0001452,2]
[334835842,1723606270564,-951.12,0.0001452,2]
[334835843,1723606270573,-518.69,0.0001452,2]
[334835844,1723606270583,-1022.29,0.0001452,2]
[334835845,1723606270592,-500.0,0.0001452,2]
[334835846,1723606270603,-500.0,0.0001452,2]
[334835847,1723606270612,-500.0,0.0001452,2]
[334835848,1723606270622,-500.0,0.0001452,2]
[334835849,1723606270631,-500.0,0.0001452,2]
[334835850,1723606270640,-957.28,0.0001452,2]
[334835851,1723606270649,-286.7564451,0.0001452,2]
[334835852,1723606270659,-500.0,0.0001452,2]
[334835853,1723606270670,-500.0,0.0001452,2]
[334835854,1723606270679,-500.0,0.0001452,2]
[334835855,1723606270689,-500.0,0.0001452,2]
[334835856,1723606270699,-553.98,0.0001452,2]
[334835857,1723606270709,-500.0,0.0001452,2]
[334835858,1723606270719,-555.03,0.0001452,2]
[334835859,1723606270728,-223.58279306,0.0001452,2]
[334835860,1723606270738,-717.25,0.0001452,2]
[334835861,1723606270751,-500.0,0.0001452,2]
[334835862,1723606270761,-1091.13,0.0001452,2]
[334835863,1723606270770,-641.38,0.0001452,2]
[334835864,1723606270779,-773.36,0.0001452,2]
[334835865,1723606270789,-500.0,0.0001452,2]
[334835866,1723606270798,-500.0,0.0001452,2]
[334835867,1723606270807,-500.0,0.0001452,2]
[334835868,1723606270817,-500.0,0.0001452,2]
[334835869,1723606270826,-558.45,0.0001452,2]
[334835870,1723606270834,-829.14,0.0001452,2]
[334835871,1723606270844,-500.0,0.0001452,2]
[334835872,1723606270860,-500.0,0.0001452,2]
[334835873,1723606270871,-500.0,0.0001452,2]
[334835874,1723606270880,-1184.9,0.0001452,2]
[334835875,1723606270890,-1293.99,0.0001452,2]
[334835876,1723606270899,-1677.47,0.0001452,2]
[334835877,1723606270908,-500.0,0.0001452,2]
[334835878,1723606270917,-500.0,0.0001452,2]
[334835879,1723606270927,-202.04250251,0.0001452,2]
[334835880,1723606270936,-500.0,0.0001452,2]
[334835881,1723606270946,-500.0,0.0001452,2]
[334835882,1723606270955,-500.0,0.0001452,2]
[334835883,1723606270965,-984.09,0.0001452,2]
[334835884,1723606270975,-654.41,0.0001452,2]
[334835885,1723606270984,-500.0,0.0001452,2]
[334835886,1723606270994,-1087.78,0.0001452,2]
[334835887,1723606271004,-578.16,0.0001452,2]
[334835888,1723606271013,-500.0,0.0001452,2]
[334835889,1723606271023,-1251.36,0.0001452,2]
[334835890,1723606271032,-807.41,0.0001452,2]
[334835891,1723606271042,-500.0,0.0001452,2]
[334835892,1723606271051,-500.0,0.0001452,2]
[334835893,1723606271061,-500.0,0.0001452,2]
[334835894,1723606271070,-500.0,0.0001452,2]
[334835895,1723606271080,-944.36,0.0001452,2]
[334835896,1723606271090,-500.0,0.0001452,2]
[334835897,1723606271100,-1708.58,0.0001452,2]
[334835898,1723606271110,-500.0,0.0001452,2]
[334835899,1723606271119,-500.0,0.0001452,2]
[334835900,1723606271129,-500.0,0.0001452,2]
[334835901,1723606271139,-500.27,0.0001452,2]
[334835902,1723606271148,-506.30453884,0.0001452,2]
[334835903,1723606271157,-646.54,0.0001452,2]
[334835904,1723606271166,-500.0,0.0001452,2]
[334835905,1723606271175,-784.06,0.0001452,2]
[334835906,1723606271184,-500.0,0.0001452,2]
[334835907,1723606271194,-835.29,0.0001452,2]
[334835908,1723606271203,-1238.23,0.0001452,2]
[334835909,1723606271212,-500.0,0.0001452,2]
[334835910,1723606271221,-500.0,0.0001452,2]
[334835911,1723606271230,-1000.0,0.0001452,2]
[334835912,1723606271239,-1139.49,0.0001452,2]
[334835913,1723606271247,-500.0,0.0001452,2]
[334835914,1723606271256,-537.59,0.0001452,2]
[334835915,1723606271265,-500.0,0.0001452,2]
[334835916,1723606271274,-500.0,0.0001452,2]
[334835917,1723606271283,-1034.38,0.0001452,2]
[334835918,1723606271292,-500.0,0.0001452,2]
[334835919,1723606271301,-500.0,0.0001452,2]
[334835920,1723606271310,-500.0,0.0001452,2]
[334835921,1723606271319,-997.12,0.0001452,2]
[334835922,1723606271328,-528.15,0.0001452,2]
[334835923,1723606271337,-500.0,0.0001452,2]
[334835924,1723606271345,-1181.95,0.0001452,2]
[334835925,1723606271358,-1270.94,0.0001452,2]
[334835926,1723606271368,-780.85,0.0001452,2]
[334835927,1723606271377,-500.0,0.0001452,2]
[334835928,1723606271388,-500.0,0.0001452,2]
[334835929,1723606271399,-1098.8,0.0001452,2]
[334835930,1723606271411,-1556.42,0.0001452,2]
[334835931,1723606271422,-500.0,0.0001452,2]
[334835932,1723606271434,-500.0,0.0001452,2]
[334835933,1723606271445,-500.0,0.0001452,2]
[334835934,1723606271457,-500.0,0.0001452,2]
[334835935,1723606271467,-500.0,0.0001452,2]
[334835936,1723606271478,-500.0,0.0001452,2]
[334835937,1723606271488,-500.0,0.0001452,2]
[334835938,1723606271627,-500.0,0.0001452,2]
[334835939,1723606271647,-786.57,0.0001452,2]
[334835940,1723606271657,-500.0,0.0001452,2]
[334835941,1723606271667,-1599.24,0.0001452,2]
[334835942,1723606271677,-500.0,0.0001452,2]
[334835943,1723606271687,-1240.35,0.0001452,2]
[334835944,1723606271697,-500.0,0.0001452,2]
[334835945,1723606271707,-2176.43,0.0001452,2]
[334835946,1723606271717,-500.0,0.0001452,2]
[334835947,1723606271726,-501.94,0.0001452,2]
[334835948,1723606271736,-500.0,0.0001452,2]
[334835949,1723606271746,-396.55938022,0.0001452,2]
[334835950,1723606271760,-664.12,0.0001452,2]
[334835951,1723606271770,-2390.4,0.0001452,2]
[334835952,1723606271781,-500.0,0.0001452,2]
[334835953,1723606271791,-500.0,0.0001452,2]
[334835954,1723606271801,-500.0,0.0001452,2]
[334835955,1723606271811,-500.0,0.0001452,2]
[334835956,1723606271821,-500.0,0.0001452,2]
[334835957,1723606271831,-500.0,0.0001452,2]
[334835958,1723606271842,-854.04,0.0001452,2]
[334835959,1723606271856,-500.0,0.0001452,2]
[334835960,1723606271867,-618.23,0.0001452,2]
[334835961,1723606271877,-1141.67,0.0001452,2]
[334835962,1723606271887,-1092.78,0.0001452,2]
[334835963,1723606271897,-500.0,0.0001452,2]
[334835964,1723606271908,-1391.15,0.0001452,2]
[334835965,1723606271918,-500.0,0.0001452,2]
[334835966,1723606271928,-500.0,0.0001452,2]
[334835967,1723606271938,-846.62,0.0001452,2]
[334835968,1723606271949,-500.0,0.0001452,2]
[334835969,1723606271959,-500.0,0.0001452,2]
[334835970,1723606271969,-500.0,0.0001452,2]
[334835971,1723606271980,-500.0,0.0001452,2]
[334835972,1723606271990,-500.0,0.0001452,2]
[334835973,1723606272000,-500.0,0.0001452,2]
[334835974,1723606272010,-652.68,0.0001452,2]
[334835975,1723606272020,-500.0,0.0001452,2]
[334835976,1723606272030,-1558.62,0.0001452,2]
[334835977,1723606272040,-500.0,0.0001452,2]
[334835978,1723606272050,-500.0,0.0001452,2]
[334835979,1723606272060,-500.0,0.0001452,2]
[334835980,1723606272070,-500.0,0.0001452,2]
[334835981,1723606272080,-500.0,0.0001452,2]
[334835982,1723606272090,-500.0,0.0001452,2]
[334835983,1723606272102,-1837.2,0.0001452,2]
[334835984,1723606272113,-500.0,0.0001452,2]
[334835985,1723606272123,-827.46,0.0001452,2]
[334835986,1723606272133,-584.71,0.0001452,2]
[334835987,1723606272143,-1094.18,0.0001452,2]
[334835988,1723606272153,-500.0,0.0001452,2]
[334835989,1723606272163,-923.76,0.0001452,2]
[334835990,1723606272174,-500.0,0.0001452,2]
[334835991,1723606272183,-500.0,0.0001452,2]
[334835992,1723606272194,-2601.81,0.0001452,2]
[334835993,1723606272204,-1963.59,0.0001452,2]
[334835994,1723606272214,-638.65,0.0001452,2]
[334835995,1723606272223,-1049.63,0.0001452,2]
[334835996,1723606272233,-184.79492131,0.0001452,2]
[334835997,1723606272243,-532.86,0.0001452,2]
[334835998,1723606272253,-663.4,0.0001452,2]
[334835999,1723606272263,-808.44,0.0001452,2]
[334836000,1723606272272,-1589.14,0.0001452,2]
[334836001,1723606272282,-500.0,0.0001452,2]
[334836002,1723606272291,-500.0,0.0001452,2]
[334836003,1723606272302,-500.0,0.0001452,2]
[334836004,1723606272312,-513.54352977,0.0001452,2]
[334836005,1723606272321,-1726.13,0.0001452,2]
[334836006,1723606272332,-500.0,0.0001452,2]
[334836007,1723606272341,-2138.89,0.0001452,2]
[334836008,1723606272352,-500.0,0.0001452,2]
[334836009,1723606272363,-500.0,0.0001452,2]
[334836010,1723606272373,-500.0,0.0001452,2]
[334836011,1723606272382,-1206.0,0.0001452,2]
[334836012,1723606272391,-500.0,0.0001452,2]
[334836013,1723606272401,-734.71,0.0001452,2]
[334836014,1723606272411,-500.0,0.0001452,2]
[334836015,1723606272422,-1244.17,0.0001452,2]
[334836016,1723606272432,-720.69,0.0001452,2]
[334836017,1723606272442,-744.42,0.0001452,2]
[334836018,1723606272453,-500.0,0.0001452,2]
[334836019,1723606272463,-1424.96,0.0001452,2]
[334836020,1723606272473,-500.0,0.0001452,2]
[334836021,1723606272482,-500.0,0.0001452,2]
[334836022,1723606272492,-163.19026068,0.0001452,2]
[334836023,1723606272501,-558.16750275,0.0001452,2]
[334836024,1723606272511,-500.0,0.0001452,2]
[334836025,1723606272520,-500.0,0.0001452,2]
[334836026,1723606272530,-353.22460497,0.0001452,2]
[334836027,1723606272540,-500.0,0.0001452,2]
[334836028,1723606272550,-1700.15,0.0001452,2]
[334836029,1723606272560,-500.0,0.0001452,2]
[334836030,1723606272570,-1009.26,0.0001452,2]
[334836031,1723606272580,-1729.02,0.0001452,2]
[334836032,1723606272591,-500.0,0.0001452,2]
[334836033,1723606272604,-500.0,0.0001452,2]
[334836034,1723606272614,-500.0,0.0001452,2]
[334836035,1723606272624,-500.0,0.0001452,2]
[334836036,1723606272634,-806.14,0.0001452,2]
[334836037,1723606272643,-715.73,0.0001452,2]
[334836038,1723606272654,-1851.1,0.0001452,2]
[334836039,1723606272664,-1632.72,0.0001452,2]
[334836040,1723606272674,-641.85,0.0001452,2]
[334836041,1723606272683,-500.0,0.0001452,2]
[334836042,1723606272693,-2952.62,0.0001452,2]
[334836043,1723606272703,-500.0,0.0001452,2]
[334836044,1723606272713,-500.0,0.0001452,2]
[334836045,1723606272723,-2012.27,0.0001452,2]
[334836046,1723606272733,-593.57,0.0001452,2]
[334836047,1723606272743,-538.72,0.0001452,2]
[334836048,1723606272754,-1377.11,0.0001452,2]
[334836049,1723606272764,-711.28,0.0001452,2]
[334836050,1723606272773,-1760.83,0.0001452,2]
[334836051,1723606272783,-500.0,0.0001452,2]
[334836052,1723606272792,-2220.15,0.0001452,2]
[334836053,1723606272803,-500.0,0.0001452,2]
[334836054,1723606272811,-500.0,0.0001452,2]
[334836055,1723606272821,-500.0,0.0001452,2]
[334836056,1723606272832,-1603.72,0.0001452,2]
[334836057,1723606272843,-500.0,0.0001452,2]
[334836058,1723606272855,-500.0,0.0001452,2]
[334836059,1723606272865,-500.0,0.0001452,2]
[334836060,1723606272874,-500.0,0.0001452,2]
[334836061,1723606272884,-2425.01,0.0001452,2]
[334836062,1723606272894,-500.0,0.0001452,2]
[334836063,1723606272903,-500.0,0.0001452,2]
[334836064,1723606272913,-900.53,0.0001452,2]
[334836065,1723606272923,-826.53,0.0001452,2]
[334836066,1723606272933,-459.95996504,0.0001452,2]
[334836067,1723606272942,-500.0,0.0001452,2]
[334836068,1723606272953,-1526.93,0.0001452,2]
[334836069,1723606272963,-639.291438,0.0001452,2]
[334836070,1723606272974,-500.0,0.0001452,2]
[334836071,1723606272984,-500.0,0.0001452,2]
[334836072,1723606272995,-704.57,0.0001452,2]
[334836073,1723606273006,-1550.13,0.0001452,2]
[334836074,1723606273016,-767.88,0.0001452,2]
[334836075,1723606273027,-516.5,0.0001452,2]
[334836076,1723606273037,-500.0,0.0001452,2]
[334836077,1723606273047,-648.78,0.0001452,2]
[334836078,1723606273057,-932.89,0.0001452,2]
[334836079,1723606273067,-640.05,0.0001452,2]
[334836080,1723606273078,-1388.76,0.0001452,2]
[334836081,1723606273088,-163.43306329,0.0001452,2]
[334836082,1723606273098,-637.78,0.0001452,2]
[334836083,1723606273109,-2460.02,0.0001452,2]
[334836084,1723606273119,-500.0,0.0001452,2]
[334836085,1723606273129,-500.0,0.0001452,2]
[334836086,1723606273138,-501.37497277,0.0001452,2]
[334836087,1723606273149,-1435.53,0.0001452,2]
[334836088,1723606273158,-673.72,0.0001452,2]
[334836089,1723606273168,-597.05,0.0001452,2]
[334836090,1723606273178,-1571.68,0.0001452,2]
[334836091,1723606273188,-1001.8,0.0001452,2]
[334836092,1723606273198,-500.0,0.0001452,2]
[334836093,1723606273208,-500.0,0.0001452,2]
[334836094,1723606273218,-500.0,0.0001452,2]
[334836095,1723606273228,-1636.49,0.0001452,2]
[334836096,1723606273238,-500.0,0.0001452,2]
[334836097,1723606273248,-680.42,0.0001452,2]
[334836098,1723606273258,-891.1,0.0001452,2]
[334836099,1723606273268,-500.0,0.0001452,2]
[334836100,1723606273278,-500.0,0.0001452,2]
[334836101,1723606273288,-1446.08,0.0001452,2]
[334836102,1723606273298,-596.24,0.0001452,2]
[334836103,1723606273308,-1020.89,0.0001452,2]
[334836104,1723606273318,-2129.32,0.0001452,2]
[334836105,1723606273328,-500.0,0.0001452,2]
[334836106,1723606273338,-500.0,0.0001452,2]
[334836107,1723606273348,-500.0,0.0001452,2]
[334836108,1723606273362,-500.0,0.0001452,2]
[334836109,1723606273372,-500.0,0.0001452,2]
[334836110,1723606273381,-2246.07,0.0001452,2]
[334836111,1723606273391,-2352.39,0.0001452,2]
[334836112,1723606273402,-1415.94,0.0001452,2]
[334836113,1723606273412,-500.0,0.0001452,2]
[334836114,1723606273422,-500.0,0.0001452,2]
[334836115,1723606273432,-1289.28,0.0001452,2]
[334836116,1723606273441,-500.0,0.0001452,2]
[334836117,1723606273451,-1181.14,0.0001452,2]
[334836118,1723606273461,-500.0,0.0001452,2]
[334836119,1723606273471,-1218.75,0.0001452,2]
[334836120,1723606273480,-1007.49,0.0001452,2]
[334836121,1723606273490,-738.52,0.0001452,2]
[334836122,1723606273499,-470.64043985,0.0001452,2]
[334836123,1723606273509,-500.0,0.0001452,2]
[334836124,1723606273519,-1335.68,0.0001452,2]
[334836125,1723606273528,-500.0,0.0001452,2]
[334836126,1723606273538,-1418.41,0.0001452,2]
[334836127,1723606273548,-500.0,0.0001452,2]
[334836128,1723606273558,-880.3,0.0001452,2]
[334836129,1723606273568,-500.0,0.0001452,2]
[334836130,1723606273577,-861.16,0.0001452,2]
[334836131,1723606273587,-1333.35,0.0001452,2]
[334836132,1723606273597,-500.0,0.0001452,2]
[334836133,1723606273611,-1083.16,0.0001452,2]
[334836134,1723606273621,-2563.84,0.0001452,2]
[334836135,1723606273630,-500.0,0.0001452,2]
[334836136,1723606273639,-507.42,0.0001452,2]
[334836137,1723606273649,-500.0,0.0001452,2]
[334836138,1723606273659,-500.0,0.0001452,2]
[334836139,1723606273668,-500.0,0.0001452,2]
[334836140,1723606273678,-500.0,0.0001452,2]
[334836141,1723606273687,-573.3,0.0001452,2]
[334836142,1723606273697,-500.0,0.0001452,2]
[334836143,1723606273706,-580.91,0.0001452,2]
[334836144,1723606273716,-530.84,0.0001452,2]
[334836145,1723606273725,-596.67,0.0001452,2]
[334836146,1723606273735,-1626.94,0.0001452,2]
[334836147,1723606273745,-500.0,0.0001452,2]
[334836148,1723606273757,-500.0,0.0001452,2]
[334836149,1723606273766,-1291.86,0.0001452,2]
[334836150,1723606273776,-500.0,0.0001452,2]
[334836151,1723606273787,-718.25,0.0001452,2]
[334836152,1723606273796,-500.0,0.0001452,2]
[334836153,1723606273806,-1403.87,0.0001452,2]
[334836154,1723606273815,-1253.31,0.0001452,2]
[334836155,1723606273824,-500.0,0.0001452,2]
[334836156,1723606273834,-500.0,0.0001452,2]
[334836157,1723606274137,-500.0,0.0001452,2]
[334836158,1723606274157,-500.0,0.0001452,2]
[334836159,1723606274166,-1266.98,0.0001452,2]
[334836160,1723606274176,-990.05,0.0001452,2]
[334836161,1723606274185,-785.78,0.0001452,2]
[334836162,1723606274195,-961.72,0.0001452,2]
[334836163,1723606274205,-500.0,0.0001452,2]
[334836164,1723606274214,-500.0,0.0001452,2]
[334836165,1723606274224,-748.73,0.0001452,2]
[334836166,1723606274233,-928.23,0.0001452,2]
[334836167,1723606274243,-986.7,0.0001452,2]
[334836168,1723606274253,-1475.15,0.0001452,2]
[334836169,1723606274262,-1516.9,0.0001452,2]
[334836170,1723606274272,-500.0,0.0001452,2]
[334836171,1723606274281,-520.36,0.0001452,2]
[334836172,1723606274291,-724.33,0.0001452,2]
[334836173,1723606274300,-1066.62,0.0001452,2]
[334836174,1723606274310,-500.0,0.0001452,2]
[334836175,1723606274319,-500.0,0.0001452,2]
[334836176,1723606274328,-500.0,0.0001452,2]
[334836177,1723606274338,-1339.64,0.0001452,2]
[334836178,1723606274347,-2145.04,0.0001452,2]
[334836179,1723606274359,-500.0,0.0001452,2]
[334836180,1723606274368,-1219.12,0.0001452,2]
[334836181,1723606274378,-2422.53,0.0001452,2]
[334836182,1723606274387,-770.76,0.0001452,2]
[334836183,1723606274397,-500.0,0.0001452,2]
[334836184,1723606274407,-500.0,0.0001452,2]
[334836185,1723606274416,-500.0,0.0001452,2]
[334836186,1723606274427,-613.62,0.0001452,2]
[334836187,1723606274436,-500.0,0.0001452,2]
[334836188,1723606274446,-1116.49,0.0001452,2]
[334836189,1723606274456,-2001.85,0.0001452,2]
[334836190,1723606274467,-1590.84,0.0001452,2]
[334836191,1723606274477,-500.0,0.0001452,2]
[334836192,1723606274487,-910.1,0.0001452,2]
[334836193,1723606274497,-500.0,0.0001452,2]
[334836194,1723606274507,-500.0,0.0001452,2]
[334836195,1723606274516,-500.0,0.0001452,2]
[334836196,1723606274526,-500.0,0.0001452,2]
[334836197,1723606274535,-500.0,0.0001452,2]
[334836198,1723606274544,-500.0,0.0001452,2]
[334836199,1723606274554,-1610.3,0.0001452,2]
[334836200,1723606274564,-875.89,0.0001452,2]
[334836201,1723606274573,-500.0,0.0001452,2]
[334836202,1723606274584,-500.0,0.0001452,2]
[334836203,1723606274594,-500.0,0.0001452,2]
[334836204,1723606274607,-500.0,0.0001452,2]
[334836205,1723606274616,-646.94,0.0001452,2]
[334836206,1723606274626,-805.15,0.0001452,2]
[334836207,1723606274636,-2687.23,0.0001452,2]
[334836208,1723606274645,-500.0,0.0001452,2]
[334836209,1723606274655,-500.0,0.0001452,2]
[334836210,1723606274665,-500.0,0.0001452,2]
[334836211,1723606274675,-1026.7,0.0001452,2]
[334836212,1723606274685,-500.0,0.0001452,2]
[334836213,1723606274695,-500.0,0.0001452,2]
[334836214,1723606274704,-2055.39,0.0001452,2]
[334836215,1723606274715,-2059.88,0.0001452,2]
[334836216,1723606274724,-500.0,0.0001452,2]
[334836217,1723606274734,-500.0,0.0001452,2]
[334836218,1723606274744,-500.0,0.0001452,2]
[334836219,1723606274755,-500.0,0.0001452,2]
[334836220,1723606274765,-1751.88,0.0001452,2]
[334836221,1723606274775,-500.0,0.0001452,2]
[334836222,1723606274784,-500.0,0.0001452,2]
[334836223,1723606274794,-545.63,0.0001452,2]
[334836224,1723606274804,-733.22,0.0001452,2]
[334836225,1723606274813,-196.17395584,0.0001452,2]
[334836226,1723606274823,-589.61,0.0001452,2]
[334836227,1723606274832,-500.0,0.0001452,2]
[334836228,1723606274841,-1476.63,0.0001452,2]
[334836229,1723606274854,-500.0,0.0001452,2]
[334836230,1723606274863,-500.0,0.0001452,2]
[334836231,1723606274873,-2316.7,0.0001452,2]
[334836232,1723606274882,-500.0,0.0001452,2]
[334836233,1723606274891,-975.54,0.0001452,2]
[334836234,1723606274902,-1352.79,0.0001452,2]
[334836235,1723606274911,-500.0,0.0001452,2]
[334836236,1723606274921,-500.0,0.0001452,2]
[334836237,1723606274930,-683.26,0.0001452,2]
[334836238,1723606274940,-638.47710213,0.0001452,2]
[334836239,1723606274949,-1857.42,0.0001452,2]
[334836240,1723606274959,-1064.71,0.0001452,2]
[334836241,1723606274969,-500.0,0.0001452,2]
[334836242,1723606274979,-500.0,0.0001452,2]
[334836243,1723606274989,-500.0,0.0001452,2]
[334836244,1723606274998,-2140.46,0.0001452,2]
[334836245,1723606275008,-500.0,0.0001452,2]
[334836246,1723606275018,-500.0,0.0001452,2]
[334836247,1723606275028,-2002.6,0.0001452,2]
[334836248,1723606275038,-500.0,0.0001452,2]
[334836249,1723606275047,-994.38,0.0001452,2]
[334836250,1723606275058,-1214.76,0.0001452,2]
[334836251,1723606275068,-500.0,0.0001452,2]
[334836252,1723606275078,-687.99,0.0001452,2]
[334836253,1723606275087,-500.0,0.0001452,2]
[334836254,1723606275097,-875.38,0.0001452,2]
[334836255,1723606275110,-2256.94,0.0001452,2]
[334836256,1723606275119,-500.0,0.0001452,2]
[334836257,1723606275129,-500.0,0.0001452,2]
[334836258,1723606275139,-542.84,0.0001452,2]
[334836259,1723606275149,-1186.97,0.0001452,2]
[334836260,1723606275159,-500.0,0.0001452,2]
[334836261,1723606275168,-500.0,0.0001452,2]
[334836262,1723606275178,-500.0,0.0001452,2]